{"text_format":"1","workbook":"xlsx","n_sheets":5,"sheets":["1 Försättssida","2 Specifikation","3 Avtalstecknande","Admin","SysAdmin"],"not_rendered":{"charts":0,"images":2,"macros":1,"external_links":1,"defined_names":93,"comments":0,"pivot_tables":0},"unopened":[],"bounds":{"document_bytes":16777216,"sheet_cells":100000,"rows_first":2000,"rows_last":500,"rows_between":2000,"halvings":0,"cell_chars":16384,"cell_head_chars":4096},"cells_cut":0,"cells_raw":0,"read":"whole","date_system":"1900"}

{"sheet":"1 Försättssida","index":0,"n_rows":24,"n_cols":1,"rows_kept":24,"cut":false,"hidden":false,"merged":[]}
[]
[]
[]
[]
[]
[]
[]
[]
[]
[]
[]
["Avropsförfrågan - Förnyad konkurrensutsättning "]
["från Statens inköpscentrals ramavtal inom området "]
["Säker förvaring"]
[]
["23.3-6924-16"]
[]
[]
[]
[]
["Avropsblankett"]
[]
[{"$f":"MID(CELL(\"filename\",A1),FIND(\"[\",CELL(\"filename\",A1))+1,FIND(\"]\",CELL(\"filename\",A1))-FIND(\"[\",CELL(\"filename\",A1))-1)","v":"Avropsblankett Säker förvaring (1.0), Förnyad konkurensutsättning.xlsm"}]
[{"$f":"MID(A23,SEARCH(\"(\",A23)+1,SEARCH(\")\",A23)-SEARCH(\"(\",A23)-1)","v":"1.0"}]

{"sheet":"2 Specifikation","index":1,"n_rows":195,"n_cols":34,"rows_kept":195,"cut":false,"hidden":false,"merged":[[101,3,101,6],[102,3,102,6],[103,3,103,6],[92,3,92,6],[93,3,93,6],[94,3,94,6],[95,3,95,6],[96,3,96,6],[97,3,97,6],[98,3,98,6],[99,3,99,6],[100,3,100,6],[56,22,56,23],[57,22,57,23],[59,22,59,23],[86,16,86,23],[98,16,98,23],[92,7,92,9],[92,12,92,13],[92,16,92,23],[94,12,94,13],[94,16,94,23],[93,16,93,23],[95,7,95,9],[97,12,97,13],[97,16,97,23],[67,11,70,13],[95,16,95,23],[84,12,84,13],[84,16,84,23],[96,16,96,23],[70,1,70,9],[77,1,77,9],[56,2,56,4],[57,2,57,4],[83,3,83,6],[52,5,52,10],[81,7,81,9],[58,2,58,4],[58,5,58,10],[58,14,58,19],[58,20,58,21],[58,22,58,23],[48,20,48,21],[48,22,48,23],[49,2,49,4],[49,5,49,10],[49,14,49,19],[49,20,49,21],[49,22,49,23],[55,22,55,23],[54,2,54,4],[53,2,53,4],[53,14,53,19],[53,5,53,10],[52,14,52,19],[52,2,52,4],[53,22,53,23],[63,1,63,5],[53,20,53,21],[45,22,45,23],[46,2,46,4],[46,5,46,10],[46,14,46,19],[46,20,46,21],[46,22,46,23],[47,2,47,4],[47,5,47,10],[47,14,47,19],[47,20,47,21],[47,22,47,23],[110,18,112,23],[114,11,114,12],[110,17,112,17],[110,15,112,16],[106,22,106,23],[106,17,106,18],[105,12,105,13],[106,12,106,13],[99,16,99,23],[113,20,114,21],[107,12,107,13],[101,16,101,23],[106,19,106,20],[180,1,180,8],[154,1,154,8],[121,15,121,16],[121,17,121,18],[122,1,124,13],[147,1,147,8],[147,15,147,18],[143,23,183,27],[132,18,132,19],[160,1,160,8],[124,25,124,27],[159,15,159,18],[141,1,141,8],[129,20,129,21],[139,1,139,5],[135,20,135,21],[130,1,136,13],[141,15,141,18],[131,18,131,19],[142,1,142,8],[131,20,131,21],[123,17,124,18],[23,6,23,8],[32,1,32,2],[32,3,32,4],[50,20,50,21],[51,14,51,19],[51,20,51,21],[22,3,22,4],[22,6,22,8],[32,6,32,7],[51,2,51,4],[39,20,39,21],[41,20,41,21],[42,2,42,4],[42,5,42,10],[42,14,42,19],[42,20,42,21],[43,2,43,4],[43,5,43,10],[43,14,43,19],[43,20,43,21],[44,2,44,4],[44,5,44,10],[44,14,44,19],[44,20,44,21],[19,1,19,8],[10,4,10,6],[10,7,10,8],[16,1,16,3],[12,1,12,3],[13,1,13,3],[13,4,13,6],[12,7,12,8],[11,4,11,6],[11,7,11,8],[15,1,15,3],[14,1,14,3],[12,4,12,6],[11,19,11,20],[11,21,11,22],[13,7,13,8],[13,15,13,17],[13,18,13,20],[12,15,12,18],[14,7,14,8],[14,4,14,6],[15,4,15,8],[15,18,15,22],[12,21,12,22],[13,21,13,22],[14,21,14,22],[25,1,25,2],[50,14,50,19],[26,3,26,4],[38,1,38,5],[25,3,25,4],[31,1,31,2],[34,1,34,10],[35,1,35,10],[41,2,41,4],[31,3,31,4],[31,6,31,7],[39,2,39,4],[40,2,40,4],[26,1,26,2],[39,5,39,10],[45,2,45,4],[45,5,45,10],[45,14,45,19],[48,2,48,4],[48,5,48,10],[48,14,48,19],[37,1,37,5],[28,1,28,4],[29,1,29,4],[194,19,194,22],[191,15,192,22],[188,15,188,22],[187,15,187,22],[190,15,190,22],[186,15,186,22],[153,15,153,18],[113,18,114,19],[118,20,118,21],[129,18,129,19],[136,20,136,21],[133,17,134,19],[130,20,130,21],[116,20,116,21],[135,18,135,19],[117,20,117,21],[132,20,132,21],[117,18,117,19],[184,15,185,22],[178,15,178,22],[179,15,179,22],[180,15,180,22],[181,15,181,22],[113,22,114,23],[2,1,2,4],[2,15,2,17],[2,19,2,22],[3,1,4,8],[3,15,4,22],[7,1,7,6],[7,7,7,8],[7,15,7,20],[7,21,7,22],[5,1,5,8],[6,1,6,8],[10,19,10,22],[9,7,9,8],[9,15,9,18],[9,19,9,22],[8,15,8,20],[11,15,11,18],[23,1,23,2],[10,1,10,3],[11,1,11,3],[14,18,14,20],[15,15,15,17],[8,1,8,6],[8,7,8,8],[22,1,22,2],[8,21,8,22],[9,1,9,3],[9,4,9,6],[16,4,16,8],[16,18,16,22],[16,15,16,17],[23,3,23,4],[12,19,12,20],[14,15,14,17],[10,15,10,18],[40,14,40,19],[37,15,37,16],[39,14,39,19],[39,22,39,23],[40,22,40,23],[50,2,50,4],[51,5,51,10],[54,5,54,10],[50,22,50,23],[51,22,51,23],[52,22,52,23],[54,22,54,23],[40,5,40,10],[50,5,50,10],[38,15,38,19],[41,5,41,10],[41,14,41,19],[40,20,40,21],[41,22,41,23],[42,22,42,23],[43,22,43,23],[44,22,44,23],[45,20,45,21],[52,20,52,21],[64,20,64,22],[59,14,59,19],[93,1,93,2],[82,1,82,2],[72,1,72,3],[74,1,74,9],[76,1,76,3],[68,1,68,3],[69,1,69,8],[90,16,90,23],[61,22,61,23],[78,10,80,10],[81,1,81,2],[59,20,59,21],[83,16,83,23],[89,12,89,13],[89,16,89,23],[82,12,82,13],[92,1,92,2],[83,7,83,9],[85,12,85,13],[85,16,85,23],[88,16,88,23],[91,16,91,23],[55,5,55,10],[54,20,54,21],[55,2,55,4],[54,14,54,19],[59,2,59,4],[56,5,56,10],[57,5,57,10],[59,5,59,10],[56,14,56,19],[56,20,56,21],[55,14,55,19],[55,20,55,21],[57,20,57,21],[57,14,57,19],[118,18,118,19],[115,20,115,21],[116,18,116,19],[129,1,129,13],[82,16,82,23],[81,12,81,13],[81,16,81,23],[83,12,83,13],[103,12,103,13],[103,16,103,23],[100,12,100,13],[100,16,100,23],[101,12,101,13],[102,12,102,13],[102,16,102,23],[83,1,83,2],[89,1,89,2],[84,1,84,2],[115,22,117,23],[113,17,114,17],[115,18,115,19],[113,16,114,16],[103,1,103,2],[115,11,115,12],[80,1,80,2],[78,11,79,13],[79,1,79,5],[67,1,67,9],[72,4,72,8],[100,1,100,2],[99,1,99,2],[93,12,93,13],[99,12,99,13],[95,1,95,2],[82,7,82,9],[87,1,87,2],[91,1,91,2],[91,7,91,9],[91,12,91,13],[98,1,98,2],[98,7,98,9],[98,12,98,13],[95,12,95,13],[96,1,96,2],[96,7,96,9],[96,12,96,13],[81,3,81,6],[82,3,82,6],[186,1,186,8],[101,1,101,2],[106,1,106,2],[102,1,102,2],[159,1,159,8],[181,1,181,8],[143,1,143,8],[144,1,144,8],[161,1,161,8],[162,1,162,8],[156,1,156,8],[155,1,155,8],[148,1,148,8],[149,1,149,8],[150,1,150,8],[153,1,153,8],[165,1,165,8],[166,1,175,8],[178,1,178,8],[103,7,103,9],[101,7,101,9],[102,7,102,9],[116,1,116,3],[179,1,179,8],[97,1,97,2],[97,7,97,9],[88,1,88,2],[86,1,86,2],[87,7,87,9],[84,7,84,9],[100,7,100,9],[99,7,99,9],[93,7,93,9],[85,1,85,2],[85,7,85,9],[94,7,94,9],[94,1,94,2],[90,3,90,6],[91,3,91,6],[90,1,90,2],[84,3,84,6],[85,3,85,6],[86,3,86,6],[87,3,87,6],[88,3,88,6],[89,3,89,6],[74,11,75,13],[87,12,87,13],[87,16,87,23],[86,7,86,9],[86,12,86,13],[88,7,88,9],[90,12,90,13],[88,12,88,13],[90,7,90,9],[89,7,89,9]]}
[]
[null,null,null,null,null,null,null,null,null,null,null,null,null,null,{"$f":"\"Avrop nr: \"&E15","v":"Avrop nr: xxxx"},null,null,null,null,null,null,null,{"$f":"\"Avrop nr: \"&E15","v":"Avrop nr: xxxx"}]
[null,"Avropsförfrågan",null,null,null,null,null,null,null,null,null,null,null,null,null,"Avropssvar",null,null,null,{"$f":"IF(LarmStatus,\"Minst ett av de obligatoriska kraven är inte ifyllda eller besvarade med Nej\",\"\")","v":"Minst ett av de obligatoriska kraven är inte ifyllda eller besvarade med Nej"},null,null,null,null,null,null,null,null,null,null,null,null,null,{"$f":"OR(AH4:AH840)","v":true}]
[null,"Instruktion till avropande organisation: \nSpara ned blanketten på din dator.\nGulmarkerade rutor fylls i av avropare innan blanketten skickas.\n\nBlanketten skickas med e-post till antagna leverantörer inom aktuellt avropsområde.\nSe vidare \"Vägledning vid avrop\".",null,null,null,null,null,null,null,null,null,null,null,null,null,"Instruktion till leverantör:\nBlåmarkerade rutor fylls i av leverantören.\nLäs och kontrollera obligatoriska krav.\nReturnera blanketten med e-post till avropande organisation (oavsett Ja eller Nej)."]
[]
[null,"Steg 1 - Administrativa uppgifter"]
[null,"Uppgifter om avropande organisation",null,null,null,null,null,null,null,null,null,null,null,null,null,"Uppgifter om Ramavtalsleverantören"]
[null,"Myndighet/Organisation (namn)",null,null,null,null,null,"Organisationsnummer",null,null,null,null,null,null,null,"Ramavtalsleverantörens namn",null,null,null,null,null,"Organisationsnummer"]
[null,null,null,null,null,null,null,null,null,null,null,null,null,null,null,null,null,null,null,null,null,{"$f":"IFERROR(INDEX(Admin!P4:P11,MATCH(RIGHT(LevVal,LEN(LevVal)-2),Admin!L4:L11,0)),\"\")","v":""}]
[null,"Postadress",null,null,"Postnummer",null,null,"Ort",null,null,null,null,null,null,null,"Kontaktperson",null,null,null,"E-post"]
[null,null,null,null,null,null,null,null,null,null,null,null,null,null,null,{"$f":"IFERROR(INDEX(Admin!S4:S11,MATCH(RIGHT(LevVal,LEN(LevVal)-2),Admin!L4:L11,0)),\"\")","v":""},null,null,null,{"$f":"IFERROR(INDEX(Admin!W4:W11,MATCH(RIGHT(LevVal,LEN(LevVal)-2),Admin!L4:L11,0)),\"\")","v":""}]
[null,"Avdelning, enhet etc",null,null,"Fakturaref.",null,null,"Mottagare för E-faktura",null,null,null,null,null,null,null,"Postadress",null,null,null,"Postnummer",null,"Ort"]
[null,null,null,null,null,null,null,null,null,null,null,null,null,null,null,{"$f":"IFERROR(INDEX(Admin!Q4:Q11,MATCH(RIGHT(LevVal,LEN(LevVal)-2),Admin!L4:L11,0)),\"\")","v":""},null,null,null,{"$f":"IFERROR(LEFT(INDEX(Admin!R4:R11,MATCH(RIGHT(LevVal,LEN(LevVal)-2),Admin!L4:L11,0)),6),\"\")","v":""},null,{"$f":"IFERROR(RIGHT(INDEX(Admin!R4:R11,MATCH(RIGHT(LevVal,LEN(LevVal)-2),Admin!L4:L11,0)),LEN(INDEX(Admin!R4:R11,MATCH(RIGHT(LevVal,LEN(LevVal)-2),Admin!L4:L11,0)))-7),\"\")","v":""}]
[null,"Kontaktperson",null,null,"Referens/diarienr för avropet",null,null,"Ev. kundnummer",null,null,null,null,null,null,null,"Telefon",null,null,"Ramavtalsnummer",null,null,"Offertnummer el likn för detta avropssvar"]
[null,null,null,null,"xxxx",null,null,null,null,null,null,null,null,null,null,{"$f":"IFERROR(INDEX(Admin!U4:U11,MATCH(RIGHT(LevVal,LEN(LevVal)-2),Admin!L4:L11,0)),\"\")","v":""},null,null,{"$f":"IFERROR(INDEX(Admin!T4:T11,MATCH(RIGHT(LevVal,LEN(LevVal)-2),Admin!L4:L11,0)),\"\")","v":""}]
[null,"Telefon",null,null,"E-post",null,null,null,null,null,null,null,null,null,null,"Avropssvar lämnas Ja/Nej",null,null,"Om Nej, motivering\n(Information ska även skickas till statens inköpscentral)"]
[null,null,null,null,"     ",null,null,null,null,null,null,null,null,null,null,null,null,null,null,null,null,null,null,null,null,null,null,null,null,null,null,null,null,{"$f":"IF(AND(P17=0,P17<>\"Ja\"),TRUE,FALSE)","v":true}]
[]
[null,"Information om avropet t ex syfte och omfattning"]
[]
[]
[null,null,"Obs att tidsfristen måste vara skälig med hänsyn till avropets karaktär."]
[null,"Sista datum för frågor",null,"Sista datum för \nsvar på frågor",null,null,"E-post för frågor (om annan än ovan)"]
[]
[]
[null,"Sista dag för avropssvar",null,"Avropssvarets giltighetstid"]
[]
[]
[null,"Typ av kontrakt (val)"]
[]
[]
[null,"Kontraktets längd: antal månader",null,"Förlängningsoption:\nantal månader",null,null,"Planerat startdatum för kontraktet"]
[]
[]
[null,"Ange vilket delområde avropet avser "]
[null,"Välj delområde"]
[]
[null,"Steg 2 - Specifikation av varor",null,null,null,null,null,null,null,null,null,null,null,null,null,"Leverantörens svar"]
[null,null,null,null,null,null,null,null,""]
[null,"Vara nr","Välj i lista\nOBS! Varje vara kan väljas flera gånger.",null,null,"Specificera varor i fritext eller hänvisa till bilaga.\nAnge bilagans nummer!\nOm specifikation görs i en bilaga anges \"Antal\" till 1 för hela beställningen.\nVid flera bilagor, använd en rad per bilaga.\nSpecificera uppdragets omfattning tex start och slut-datum",null,null,null,null,null,"Specifikation i bilaga?","Antal (styck)\n(blir alltid 1 om bilaga)",null,"Vid behov specificera tjänster, annan information eller hänvisa till bilaga.",null,null,null,null,null,"Pris/styck\n",null,"Pris"]
[null,"01.","Välj vara",null,null,null,null,null,null,null,null,false,null,null,null,null,null,null,null,null,null,null,{"$f":"IFERROR(U41*M41,\"\")","v":0}]
[null,"02.","Välj vara",null,null,null,null,null,null,null,null,false,null,null,null,null,null,null,null,null,null,null,0]
[null,"03.","Välj vara",null,null,null,null,null,null,null,null,false,null,null,null,null,null,null,null,null,null,null,0]
[null,"04.","Välj vara",null,null,null,null,null,null,null,null,false,null,null,null,null,null,null,null,null,null,null,0]
[null,"05.","Välj vara",null,null,null,null,null,null,null,null,false,null,null,null,null,null,null,null,null,null,null,0]
[null,"06.","Välj vara",null,null,null,null,null,null,null,null,false,null,null,null,null,null,null,null,null,null,null,0]
[null,"07.","Välj vara",null,null,null,null,null,null,null,null,false,null,null,null,null,null,null,null,null,null,null,0]
[null,"08.","Välj vara",null,null,null,null,null,null,null,null,false,null,null,null,null,null,null,null,null,null,null,0]
[null,"09.","Välj vara",null,null,null,null,null,null,null,null,false,null,null,null,null,null,null,null,null,null,null,0]
[null,"10.","Välj vara",null,null,null,null,null,null,null,null,false,null,null,null,null,null,null,null,null,null,null,0]
[null,"11.","Välj vara",null,null,null,null,null,null,null,null,false,null,null,null,null,null,null,null,null,null,null,0]
[null,"12.","Välj vara",null,null,null,null,null,null,null,null,false,null,null,null,null,null,null,null,null,null,null,0]
[null,"13.","Välj vara",null,null,null,null,null,null,null,null,false,null,null,null,null,null,null,null,null,null,null,0]
[null,"14.","Välj vara",null,null,null,null,null,null,null,null,false,null,null,null,null,null,null,null,null,null,null,0]
[null,"15.","Välj vara",null,null,null,null,null,null,null,null,false,null,null,null,null,null,null,null,null,null,null,0]
[null,"16.","Välj vara",null,null,null,null,null,null,null,null,false,null,null,null,null,null,null,null,null,null,null,0]
[null,"17.","Välj vara",null,null,null,null,null,null,null,null,false,null,null,null,null,null,null,null,null,null,null,0]
[null,"18.","Välj vara",null,null,null,null,null,null,null,null,false,null,null,null,null,null,null,null,null,null,null,0]
[null,"19.","Välj vara",null,null,null,null,null,null,null,null,false,null,null,null,null,null,null,null,null,null,null,0]
[null,"20.","Välj vara",null,null,null,null,null,null,null,null,false,null,null,null,null,null,null,null,null,null,null,0]
[]
[null,null,null,null,null,null,null,null,null,null,null,null,null,null,null,null,null,null,null,null,null,"Totalt pris (utvärderas): ",{"$f":"SUM(W41:X60)","v":0}]
[]
[null,null,null,null,null,null,null,null,null,null,null,null,null,null,null,null,null,null,null,null,"OBS! Ej detsamma som kontraktssumma"]
[]
[null,"Steg 3 - Grund för tilldelning av kontrakt"]
[]
[null,"Ange tilldelningsgrund som kommer att tillämpas för att utse vinnande avropssvar.\nObs! Om kravspecifikationen innehåller bör-krav väljer Ni alternativ 2 nedan.",null,null,null,null,null,null,null,null,null,"Instruktion:\nInnan kravspecifikationen fylls i måste du ange tilldelningsgrund, dvs. om tilldelning ska ske genom lägsta pris (endast ska-krav) eller med bör-krav som viktas mot priset i utvärderingen. Kravspecifikationen nedan kommer att anpassas efter ditt val."]
[]
[null,"Tilldelning av kontrakt sker utifrån:"]
[null,"Välj grund för tilldelning….."]
[1]
[1,"Utvärderingsmodell"]
[1]
[1,"Ange den utvärderingsmodell som kommer att tillämpas för att utse vinnande avropssvar. \n",null,null,null,null,null,null,null,null,null,"Instruktion:\nObservera att de två föreslagna alternativen endast är exempel på vanligt förekommande utvärderings-modeller. Det är alltid den avropande organisationen som avgör om man vill använda sig av dem. "]
[1]
[1,"Utvärdering av :"]
[1,"Välj utvärdering….."]
[]
[null,"Steg 4 - Kravspecifikation",null,null,null,null,null,null,null,null,null,null,null,null,null,"Kravuppfyllnad"]
[]
[null,"Välj vara (endast de som valts i steg 2 ovan är möjliga)\nOBS! Varje vara kan väljas flera gånger.",null,"Välj krav ur kravkatalog \nOBS! varje krav kan väljas flera gånger",null,null,null,"Precisera krav i fritext eller hänvisa till bilaga\n\n",null,null,{"$f":"IF(ISNUMBER(SEARCH(\"1\",B71)),\"Endast ska-krav\",\"Välj typ av krav\n(ska/bör)\")","v":"Välj typ av krav\n(ska/bör)"},{"$f":"IF(TillDelVal=1,\"\",\"Ange poäng-värde\n(vid bör-krav)\")","v":""},{"$f":"IF(TillDelVal=1,\"\",\"Ange prisavdrag från totalpriset (kr)\n(vid bör-krav)\")","v":""},null,null,"Uppfyller kravet?","Beskrivning av hur leverantören uppfyller kravet eller referera till bilaga"]
[null,"Välj vara",null,null,null,null,null,null,null,null,null,null,null,null,null,null,null,null,null,null,null,null,null,null,null,null,{"$f":"IF(AND(K83=\"Bör-krav\",L83<=0),TRUE,FALSE)","v":false},{"$f":"IF(K83=\"Ska-krav\",TRUE,FALSE)","v":false},null,null,null,null,null,{"$f":"IF(AND(K83=\"Ska-krav\",P83<>\"Ja\"),TRUE,FALSE)","v":false}]
[null,"Välj vara",null,null,null,null,null,null,null,null,null,null,null,null,null,null,null,null,null,null,null,null,null,null,null,null,{"$f":"IF(AND(K84=\"Bör-krav\",L84<=0),TRUE,FALSE)","v":false},{"$f":"IF(K84=\"Ska-krav\",TRUE,FALSE)","v":false},null,null,null,null,null,{"$f":"IF(AND(K84=\"Ska-krav\",P84<>\"Ja\"),TRUE,FALSE)","v":false}]
[null,"Välj vara",null,null,null,null,null,null,null,null,null,null,null,null,null,null,null,null,null,null,null,null,null,null,null,null,false,false,null,null,null,null,null,false]
[null,"Välj vara",null,null,null,null,null,null,null,null,null,null,null,null,null,null,null,null,null,null,null,null,null,null,null,null,false,false,null,null,null,null,null,false]
[null,"Välj vara",null,null,null,null,null,null,null,null,null,null,null,null,null,null,null,null,null,null,null,null,null,null,null,null,false,false,null,null,null,null,null,false]
[null,"Välj vara",null,null,null,null,null,null,null,null,null,null,null,null,null,null,null,null,null,null,null,null,null,null,null,null,false,false,null,null,null,null,null,false]
[null,"Välj vara",null,null,null,null,null,null,null,null,null,null,null,null,null,null,null,null,null,null,null,null,null,null,null,null,false,false,null,null,null,null,null,false]
[null,"Välj vara",null,null,null,null,null,null,null,null,null,null,null,null,null,null,null,null,null,null,null,null,null,null,null,null,false,false,null,null,null,null,null,false]
[null,"Välj vara",null,null,null,null,null,null,null,null,null,null,null,null,null,null,null,null,null,null,null,null,null,null,null,null,false,false,null,null,null,null,null,false]
[null,"Välj vara",null,null,null,null,null,null,null,null,null,null,null,null,null,null,null,null,null,null,null,null,null,null,null,null,false,false,null,null,null,null,null,false]
[null,"Välj vara",null,null,null,null,null,null,null,null,null,null,null,null,null,null,null,null,null,null,null,null,null,null,null,null,false,false,null,null,null,null,null,false]
[null,"Välj vara",null,null,null,null,null,null,null,null,null,null,null,null,null,null,null,null,null,null,null,null,null,null,null,null,false,false,null,null,null,null,null,false]
[null,"Välj vara",null,null,null,null,null,null,null,null,null,null,null,null,null,null,null,null,null,null,null,null,null,null,null,null,false,false,null,null,null,null,null,false]
[null,"Välj vara",null,null,null,null,null,null,null,null,null,null,null,null,null,null,null,null,null,null,null,null,null,null,null,null,false,false,null,null,null,null,null,false]
[null,"Välj vara",null,null,null,null,null,null,null,null,null,null,null,null,null,null,null,null,null,null,null,null,null,null,null,null,false,false,null,null,null,null,null,false]
[null,"Välj vara",null,null,null,null,null,null,null,null,null,null,null,null,null,null,null,null,null,null,null,null,null,null,null,null,false,false,null,null,null,null,null,false]
[null,"Välj vara",null,null,null,null,null,null,null,null,null,null,null,null,null,null,null,null,null,null,null,null,null,null,null,null,false,false,null,null,null,null,null,false]
[null,"Välj vara",null,null,null,null,null,null,null,null,null,null,null,null,null,null,null,null,null,null,null,null,null,null,null,null,false,false,null,null,null,null,null,false]
[null,"Välj vara",null,null,null,null,null,null,null,null,null,null,null,null,null,null,null,null,null,null,null,null,null,null,null,null,false,false,null,null,null,null,null,false]
[null,"Välj vara",null,null,null,null,null,null,null,null,null,null,null,null,null,null,null,null,null,null,null,null,null,null,null,null,false,false,null,null,null,null,null,false]
[null,"Välj vara",null,null,null,null,null,null,null,null,null,null,null,null,null,null,null,null,null,null,null,null,null,null,null,null,false,false,null,null,null,null,null,false]
[null,"Välj vara",null,null,null,null,null,null,null,null,null,null,null,null,null,null,null,null,null,null,null,null,null,null,null,null,false,false,null,null,null,null,null,false]
[1]
[1,null,null,null,null,null,null,null,null,null,null,"Max poäng för uppfyllda bör-krav","Max prisavdrag för uppfyllda bör-krav"]
[1,null,null,null,null,null,null,null,null,null,null,{"$f":"SUM(L83:L104)","v":0},{"$f":"SUM(M83:M104)","v":0},null,null,"Total erhållen poängsumma: ",{"$f":"SUMIF(P83:P104,\"Ja\",L83:L104)","v":0},null,null,"Totalt erhållet prisavdrag:",null,{"$f":"SUMIF(P83:P104,\"Ja\",M83:M104)","v":0}]
[]
[]
[]
["Ut1","Alt. 1. Summan av viktade poäng för pris och uppfyllda bör-krav, högsta slutsumma vinner.",null,null,null,null,null,null,null,null,null,null,null,null,null,"Sammanställning för detta avropssvar",null,"Fyll i det gula fältet efter att samtliga avropssvar inkommit!","När det gula fältet är ifyllt sker en automatisk poängberäkning. Lägst pris tilldelas maxpoäng (100) medan övriga priser tilldelas poäng i förhållande till det lägsta priset. Poängsumman för uppfyllda bör-krav multipliceras med angiven viktning och en slutlig poängsumma för detta avropssvar kommer att framgå av fältet längst ned. Denna slutliga poängsumma ligger till grund för tilldelningsbeslutet."]
["Ut1","Priset jämförs mellan avropssvaren. Poäng för uppfyllda bör-krav jämförs med möjlig maxpoäng. "]
["Ut1","Tilldelningskriterier"]
["Ut1","Ange kriterievikt för pris respektive bör-krav i tabellen nedan",null,null,null,null,null,null,null,"Viktning %",null,null,null,null,null,null,"Viktning","Lägsta inkomna totalpris","Erhållen poäng för totalpris",null,"Viktade poäng per kriterium",null,"Slutlig poängsumma för detta avropssvar\n(utvärderas)"]
["Ut1","Pris",null,null,null,null,null,null,"Utvärdering av det totala sammanräknade priset: ",1,null,null,null,null,null,"Totalpris"]
["Ut1","Utvärderingskrav \n(bör-krav)",null,null,null,null,null,null,"Utvärdering av ställda bör-krav på avropade tjänster: ",0,null,null,null,null,null,{"$f":"W62","v":0},{"$f":"J115","v":1},null,{"$f":"IFERROR(R116/P116*100,0)","v":0},null,{"$f":"IFERROR(S116*Q116,\"\")","v":0},null,{"$f":"IFERROR(SUM(U116+U118),\"\")","v":""}]
["Ut1","Summa kriterievikt:",null,null,null,null,null,null,"(ska alltid summera till 100 %)",{"$f":"J116+J115","v":1},null,null,null,null,null,"Poängsumma för uppfyllda bör-krav"]
["Ut1",null,null,null,null,null,null,null,null,null,null,null,null,null,null,{"$f":"Q107","v":0},{"$f":"J116","v":0},null,null,null,{"$f":"IFERROR(((P118/L107)*100)*Q118,\"\")","v":""}]
["Ut1"]
["Ut1"]
[]
["Ut2","Alt. 2. Prisavdrag för uppfyllda bör-krav, lägsta utvärderingskostnad vinner. ",null,null,null,null,null,null,null,null,null,null,null,null,null,"Prisavdrag för uppfyllda bör-krav. ",null,"Summa utvärderingskostnad för detta avropssvar"]
["Ut2","Det erhållna prisavdraget för uppfyllda utvärderingskrav (bör-krav) dras ifrån det totala priset för avropade tjänster. Resultatet blir en utvärderingskostnad som ligger till grund för tilldelningsbeslutet.",null,null,null,null,null,null,null,null,null,null,null,null,null,{"$f":"V107","v":0},null,{"$f":"W62-P123","v":0}]
["Ut2",null,null,null,null,null,null,null,null,null,null,null,null,null,null,null,null,"OBS! Ej detsamma som kontraktssumma"]
["Ut2"]
["Ut2"]
[]
["Ut3","Alt. 3. Annan utvärderingsmodell (än de ovan föreslagna)"]
["Ut3"]
["Ut3","Avropande organisations beskrivning av den utvärderingsmodell som kommer att tillämpas (eller hänvisning till bilaga)"]
["Ut3"]
["Ut3"]
["Ut3"]
["Ut3"]
["Ut3"]
["Ut3"]
["Ut3"]
[]
[]
[null,"Steg 5 - Övriga uppgifter"]
[null,"Leveranstid"]
[null,"Ange ev leveranstid/er för tjänsterna"]
[]
[]
[]
[]
[null,"Leveransvillkor (framgår av ramavtalets allmänna villkor)"]
[null,"Ev. precisering av leveransvillkor"]
[]
[]
[]
[]
[null,"Adress (om annan än ovan)"]
[null,"Ange ev adress för uppdraget/uppdragen"]
[]
[]
[]
[]
[null,"Fakturaadress (om annan än ovan)"]
[null,"Ange ev fakturaadress/erna"]
[]
[]
[]
[]
[null,"Övrig information"]
[null,"Ange övriga specifika förutsättningar (tex ev budgetrestriktioner), förhållanden eller önskemål som kan vara viktiga för leverantören och som inte framgår på annan plats i dokumentet."]
[]
[]
[]
[]
[]
[]
[]
[]
[]
[]
[]
[null,"Bilagor från avropande organisation (kontraktshandlingar framgår av flik 3)",null,null,null,null,null,null,null,null,null,null,null,null,null,"Bilagor från leverantören"]
[null,"Specificera ev. bilagor som medföljer denna avropsförfrågan",null,null,null,null,null,null,null,null,null,null,null,null,null,"Specificera ev. bilagor som medföljer detta avropssvar"]
[]
[]
[]
[]
[]
[null,null,null,null,null,null,null,null,null,null,null,null,null,null,null,"Leverantören har lämnat begärda prisuppgifter som gäller för offererade tjänster enligt ställda krav samt accepterar i övrigt kraven i avropsförfrågan och är införstådd med att samtliga lämnade uppgifter i avropssvaret är bindande\n"]
[]
[null,"OBS! Spara inte blanketten i PDF-format. Då kan inte leverantörerna fylla i den. Lås blanketten med \"låsknappen\" nedan innan ni skickar blanketten till leverantörerna.",null,null,null,null,null,null,null,null,null,null,null,null,null,{"$f":"\"Leverantören intygar att avropssvaret är giltigt minst den tid som avropande organisation angett ovan. \"&CHAR(10)&\"(\"&TEXT(D27,\"ÅÅÅÅ-MM-DD\")&\")\"","v":"Leverantören intygar att avropssvaret är giltigt minst den tid som avropande organisation angett ovan. \n(1900-01-00)"}]
[null,null,null,null,null,null,null,null,null,null,null,null,null,null,null,"Ort, datum"]
[null,null,null,null,null,null,null,null,null,null,null,null,null,null,null,null,null,null,null,null,null,null,null,null,null,null,null,null,null,null,null,null,null,{"$f":"IF(P189=0,TRUE,FALSE)","v":true}]
[]
[null,null,null,null,null,null,null,null,null,null,null,null,null,null,null,"Namn, befattning (behörig företrädare för leverantören)"]
[]
[null,null,null,null,null,null,null,null,null,null,null,null,null,null,null,null,null,null,null,null,null,null,null,null,null,null,null,null,null,null,null,null,null,{"$f":"IF(P192=0,TRUE,FALSE)","v":true}]
[]
[null,null,null,null,null,null,null,null,null,null,null,null,null,null,null,null,null,null,null,{"$f":"IF(LarmStatus,\"Minst ett av de obligatoriska kraven är inte ifyllda eller besvarde med Nej\",\"\")","v":"Minst ett av de obligatoriska kraven är inte ifyllda eller besvarde med Nej"}]

{"sheet":"3 Avtalstecknande","index":2,"n_rows":37,"n_cols":4,"rows_kept":37,"cut":false,"hidden":false,"merged":[[41,1,41,3],[22,1,22,3],[37,1,37,3],[17,1,17,3],[18,1,19,3],[5,1,5,3],[38,1,38,3],[39,1,39,3],[40,1,40,3],[7,1,7,3],[9,1,9,3],[11,1,11,3],[14,1,14,3],[15,1,15,3]]}
[null,null,null,{"$f":"\"Avrop nr: \"&'2 Specifikation'!E15","v":"Avrop nr: xxxx"}]
[]
[]
[]
[null,"Kontrakt"]
[null,{"$f":"\"Detta kontrakt reglerar avrop från ramavtalsområde \"&'1 Försättssida'!A14&\", \"&'1 Försättssida'!A16","v":"Detta kontrakt reglerar avrop från ramavtalsområde Säker förvaring, 23.3-6924-16"}]
[null,"Kontraktets omfattning"]
[null,"Leveransens omfattning och villkor framgår av Kontraktet med tillhörande bilagor samt Ramavtalet. Om handlingarna innehåller motstridiga uppgifter ska handlingarna gälla i nedan nämnd ordning om inte omständigheterna uppenbarligen föranleder annat."]
[null,"1. Skriftliga ändringar och tillägg till Kontrakt"]
[null,"2. Kontrakt med bilagor, inkl. Allmänna villkor"]
[null,"3. Eventuellt kompletterande Avropsförfrågan"]
[null,"4. Avropsförfrågan med bilagor "]
[null,"5. Eventuella tillåtna kompletteringar av Avropssvar"]
[null,"6. Avropssvar med bilagor"]
[]
[null,"Innehåller leverantörens avropssvar uppgifter som inte efterfrågats i avropsblanketten är dessa uppgifter giltiga endast om en skriftlig överenskommelse träffas särskilt angående detta. Hänvisning till leverantörens egna allmänna villkor eller motsvarande är endast giltiga om en särskild överenskommelse avseende detta tecknas."]
[]
[null,"Särskilda kontraktsvillkor, säkerhetsskyddsavtal etc. (alternativt enl separat bilaga) Se Allmänna villkor för tillåtna kompletteringar! "]
[]
[]
[]
[null,"Underskrift"]
[null,"Underskriften avser ett kontraktstecknande. Efter undertecknande av bägge parter utgör denna blankett tillsammans med ramavtalets villkor enligt ovan ett kontrakt mellan parterna.\n\nDetta kontrakt har upprättats i två exemplar varav parterna tagit var sitt."]
[]
[null,"Avropande organisation",null,"Leverantör"]
[null,{"$f":"'2 Specifikation'!B9","v":0},null,{"$f":"'2 Specifikation'!P9","v":0}]
[null,"Org.nr.",null,"Org.nr."]
[null,{"$f":"'2 Specifikation'!H9","v":0},null,{"$f":"'2 Specifikation'!V9","v":""}]
[]
[null,"Ort, datum",null,"Ort, datum"]
[]
[]
[null,"Namn, befattning \n(behörig företrädare för avropande organisation)",null,"Namn, befattning \n(behörig företrädare för leverantören)"]
[]
[]
[]
[null,"Eventuella bilagor till kontraktet"]

{"sheet":"Admin","index":3,"n_rows":122,"n_cols":30,"rows_kept":122,"cut":false,"hidden":true,"merged":[]}
[null,null,null,null,null,null,null,null,null,"ResVarTja"]
[null,null,null,"Säkerhetsskåp","Värdeskåp och stöldskyddsskåp","Brandskyddande skåp","Brandsäkra skåp för farliga ämnen",null,null,{"$f":"'2 Specifikation'!B36","v":"Välj delområde"},null,"Leverantör","Vilken rangordning för just den delen","Delområde",null,"Organisationsnr","Adress","Postadress","Kontaktperson","Avtalsnummer","Telefonnr","E-post","E-post för avrop"]
[null,null,"TblDelområde","Välj vara",{"$f":"ValVarTja","v":"Välj vara"},{"$f":"ValVarTja","v":"Välj vara"},{"$f":"ValVarTja","v":"Välj vara"},null,null,{"$f":"IFERROR(IF(INDEX(D3:I3,MATCH(J$2,D$2:I$2,0))=0,\"\",INDEX(D3:I3,MATCH(J$2,D$2:I$2,0))),\"\")","v":""}]
[null,null,"Välj delområde","Laptopskåp","Värdeskåp","Vertikalskåp","Säkerhetsskåp för brandfarliga vätskor",null,null,{"$f":"IFERROR(IF(INDEX(D4:I4,MATCH(J$2,D$2:I$2,0))=0,\"\",INDEX(D4:I4,MATCH(J$2,D$2:I$2,0))),\"\")","v":""},null,"Nivex TopSafe AB",1,"Säkerhetsskåp",{"$f":"M4&\"-\"&N4","v":"1-Säkerhetsskåp"},"556207-1802","Verkstadsgatan 9","243 32 Höör","Jacob Hallgren","23.3-6924-16:001","0735-128374","jacob.hallgren@topsafe.se","order@topsafe.se ","ok"]
[null,null,{"$f":"D2","v":"Säkerhetsskåp"},"Nyckelsäkerhetsskåp","Stöldskyddsskåp","Hurts på hjul","Säkerhetsskåp för gasflaskor",null,null,{"$f":"IFERROR(IF(INDEX(D5:I5,MATCH(J$2,D$2:I$2,0))=0,\"\",INDEX(D5:I5,MATCH(J$2,D$2:I$2,0))),\"\")","v":""},null,"Scandinavian Safe",2,"Säkerhetsskåp",{"$f":"M5&\"-\"&N5","v":"2-Säkerhetsskåp"},"556617-1319","Regulatorvägen 19","141 49 Huddinge","Peter Hägglund","23.3-6924-16:002","0709-500040","peter@scandinaviansafe.se","info@scandinaviansafe.se ","ok"]
[null,null,{"$f":"E2","v":"Värdeskåp och stöldskyddsskåp"},"Säkerhetsskåp","Valvdörr","Lateralskåp","Tillbehör",null,null,"",null,"Profsafe AB",3,"Säkerhetsskåp","3-Säkerhetsskåp","556722-2459","Box 140","334 23 Anderstorp","Jimmy Åsedal","23.3-6924-16:003","0371-587877","jimmy@profsafe.se","info@profsafe.se ","ok"]
[null,null,{"$f":"F2","v":"Brandskyddande skåp"},"Vapensäkerhetsskåp","Valvrumsmodul","Dokumentskåp",null,null,null,"",null,"HÅBECO Protection AB",3,"Brandskyddande skåp","3-Brandskyddande skåp","556547-2312","Sjöhagsvägen 6","721 32 Västerås","Mats Nilsson","23.3-6924-16:004","08-6151180","mats.nilsson@habeco.com","info@habeco.se","ok"]
[null,null,{"$f":"G2","v":"Brandsäkra skåp för farliga ämnen"},"Serversäkerhetsskåp","Tillbehör","Datamediaskåp",null,null,null,"",null,"Robur Safe AB",2,"Brandskyddande skåp","2-Brandskyddande skåp","556501-4445","Lundbyvägen 8","311 68 Slöinge","Rickard Ahlund","23.3-6924-16:005","0346-260214","rickard.ahlund@robursafe.com","order@robursafe.com","ok"]
[null,null,null,"Serversäkerhetsskåp med RÖS-skydd",null,"Brandbox",null,null,null,"",null,"Denios AB",1,"Brandsäkra skåp för farliga ämnen","1-Brandsäkra skåp för farliga ämnen","556613-7930","Box 534","551 17 Jönköping","Marie Sundell","23.3-6924-16:006","036-395666","MrS@denios.se","order@denios.se","ok"]
[null,null,null,"Elektroniska nyckel- och förvaringssystem",null,"Tillbehör",null,null,null,"",null,"Ikaros Cleantech AB",2,"Brandsäkra skåp för farliga ämnen","2-Brandsäkra skåp för farliga ämnen","556416-7418","Sofiedalsvägen 1","238 37 Oxie","Mats Johansson","23.3-6924-16:007","0733-122249","mats.johansson@ikaros.net","info@ikaros.net","ok"]
[null,null,null,"Laptopvagn",null,null,null,null,null,"",null,"Secura Sweden AB",3,"Brandsäkra skåp för farliga ämnen","3-Brandsäkra skåp för farliga ämnen","556363-5746","S:t Olofsgatan 33 B","753 30 Uppsala","Rickard Dahlstedt","23.3-6924-16:008","018-349555","rickard@secura.se","info@secura.se","ok"]
[null,null,null,"Tillbehör",null,null,null,null,null,""]
[null,null,null,null,null,null,null,null,null,"",null,null,null,{"$f":"N2","v":"Delområde"},null,null,null,"TblLevLista"]
[null,null,null,null,null,null,null,null,null,"",null,null,null,{"$f":"C5","v":"Säkerhetsskåp"},{"$f":"C6","v":"Värdeskåp och stöldskyddsskåp"},{"$f":"C7","v":"Brandskyddande skåp"},{"$f":"C8","v":"Brandsäkra skåp för farliga ämnen"},{"$f":"'2 Specifikation'!B36","v":"Välj delområde"}]
[null,null,null,null,null,null,null,null,null,"",null,null,null,null,null,null,null,{"$f":"IFERROR(INDEX(N15:Q15,,MATCH(R13,N13:Q13,0)),\"\")","v":""}]
[null,null,null,null,null,null,null,null,null,"",null,null,null,"1 Nivex TopSafe AB","1 HÅBECO Protection AB","1 Nivex TopSafe AB","1 Denios AB",{"$f":"IFERROR(INDEX(N16:Q16,,MATCH($R$14,N$14:Q$14,0)),\"Vänligen välj delområde\")","v":"Vänligen välj delområde"}]
[null,null,null,null,null,null,null,null,null,"",null,null,null,"2 Scandinavian Safe","2 Robur Safe AB","2 Robur Safe AB","2 Ikaros Cleantech AB",{"$f":"IFERROR(INDEX(N17:Q17,,MATCH($R$14,N$14:Q$14,0)),\"\")","v":""}]
[null,null,null,null,null,null,null,null,null,"",null,null,null,"3 Profsafe AB","3 Profsafe AB","3 HÅBECO Protection AB","3 Secura Sweden AB",{"$f":"IFERROR(INDEX(N18:Q18,,MATCH($R$14,N$14:Q$14,0)),\"\")","v":""}]
[null,null,null,null,null,null,null,null,null,""]
[null,null,null,null,null,null,null,null,null,""]
[null,null,null,null,null,null,null,null,null,""]
[null,null,null,null,null,null,null,null,null,""]
[null,null,null,null,null,null,null,null,null,""]
[null,null,null,null,null,null,null,null,null,""]
[]
[]
[null,null,null,"Optioner",null,null,null,null,null,"ResOpt"]
[null,null,null,"Välj Option",{"$f":"D28","v":"Välj Option"},{"$f":"E28","v":"Välj Option"},{"$f":"F28","v":"Välj Option"},{"$f":"G28","v":"Välj Option"},{"$f":"H28","v":"Välj Option"},{"$f":"INDEX(D28:I28,MATCH(J$2,D$2:I$2,0))","v":{"$error":"#N/A"}}]
[null,null,null,"Delområde 1/Option 1","Delområde 2/Option 1","Delområde 3/Option 1","Delområde 4/Option 1","Delområde 5/Option 1","Delområde 6/Option 1",{"$f":"IFERROR(IF(INDEX(D29:I29,MATCH(J$2,D$2:I$2,0))=0,\"\",INDEX(D29:I29,MATCH(J$2,D$2:I$2,0))),\"\")","v":""}]
[null,null,null,"Delområde 1/Option 2","Delområde 2/Option 2","Delområde 3/Option 2","Delområde 4/Option 2","Delområde 5/Option 2","Delområde 6/Option 2",{"$f":"IFERROR(IF(INDEX(D30:I30,MATCH(J$2,D$2:I$2,0))=0,\"\",INDEX(D30:I30,MATCH(J$2,D$2:I$2,0))),\"\")","v":""}]
[null,null,null,"Delområde 1/Option 3","Delområde 2/Option 3","Delområde 3/Option 3","Delområde 4/Option 3","Delområde 5/Option 3","Delområde 6/Option 3",""]
[null,null,null,"Delområde 1/Option 4","Delområde 2/Option 4","Delområde 3/Option 4","Delområde 4/Option 4","Delområde 5/Option 4","Delområde 6/Option 4",""]
[null,null,null,"Delområde 1/Option 5","Delområde 2/Option 5","Delområde 3/Option 5","Delområde 4/Option 5","Delområde 5/Option 5","Delområde 6/Option 5",""]
[null,null,null,"Delområde 1/Option 6","Delområde 2/Option 6","Delområde 3/Option 6","Delområde 4/Option 6","Delområde 5/Option 6","Delområde 6/Option 6",""]
[null,null,null,"Delområde 1/Option 7","Delområde 2/Option 7","Delområde 3/Option 7","Delområde 4/Option 7","Delområde 5/Option 7","Delområde 6/Option 7",""]
[null,null,null,"Delområde 1/Option 8","Delområde 2/Option 8","Delområde 3/Option 8","Delområde 4/Option 8","Delområde 5/Option 8","Delområde 6/Option 8",""]
[null,null,null,"Delområde 1/Option 9","Delområde 2/Option 9","Delområde 3/Option 9","Delområde 4/Option 9","Delområde 5/Option 9","Delområde 6/Option 9",""]
[null,null,null,"Delområde 1/Option 10","Delområde 2/Option 10","Delområde 3/Option 10","Delområde 4/Option 10","Delområde 5/Option 10","Delområde 6/Option 10",""]
[null,null,null,"Delområde 1/Option 11","Delområde 2/Option 11","Delområde 3/Option 11","Delområde 4/Option 11","Delområde 5/Option 11","Delområde 6/Option 11",""]
[null,null,null,"Delområde 1/Option 12","Delområde 2/Option 12","Delområde 3/Option 12","Delområde 4/Option 12","Delområde 5/Option 12","Delområde 6/Option 12",""]
[null,null,null,"Delområde 1/Option 13","Delområde 2/Option 13","Delområde 3/Option 13","Delområde 4/Option 13","Delområde 5/Option 13","Delområde 6/Option 13",""]
[null,null,null,"Delområde 1/Option 14","Delområde 2/Option 14","Delområde 3/Option 14","Delområde 4/Option 14","Delområde 5/Option 14","Delområde 6/Option 14",""]
[null,null,null,"Delområde 1/Option 15","Delområde 2/Option 15","Delområde 3/Option 15","Delområde 4/Option 15","Delområde 5/Option 15","Delområde 6/Option 15",""]
[null,null,null,"Delområde 1/Option 16","Delområde 2/Option 16","Delområde 3/Option 16","Delområde 4/Option 16","Delområde 5/Option 16","Delområde 6/Option 16",""]
[null,null,null,"Delområde 1/Option 17","Delområde 2/Option 17","Delområde 3/Option 17","Delområde 4/Option 17","Delområde 5/Option 17","Delområde 6/Option 17",""]
[null,null,null,"Delområde 1/Option 18","Delområde 2/Option 18","Delområde 3/Option 18","Delområde 4/Option 18","Delområde 5/Option 18","Delområde 6/Option 18",""]
[null,null,null,"Delområde 1/Option 19","Delområde 2/Option 19","Delområde 3/Option 19","Delområde 4/Option 19","Delområde 5/Option 19","Delområde 6/Option 19",""]
[null,null,null,"Delområde 1/Option 20","Delområde 2/Option 20","Delområde 3/Option 20","Delområde 4/Option 20","Delområde 5/Option 20","Delområde 6/Option 20",""]
[null,null,null,"Delområde 1/Option 21","Delområde 2/Option 21","Delområde 3/Option 21","Delområde 4/Option 21","Delområde 5/Option 21","Delområde 6/Option 21",""]
[null,null,null,"Delområde 1/Option 22","Delområde 2/Option 22","Delområde 3/Option 22","Delområde 4/Option 22","Delområde 5/Option 22","Delområde 6/Option 22",""]
[null,null,null,"Delområde 1/Option 23","Delområde 2/Option 23","Delområde 3/Option 23","Delområde 4/Option 23","Delområde 5/Option 23","Delområde 6/Option 23",""]
[null,null,null,"Delområde 1/Option 24","Delområde 2/Option 24","Delområde 3/Option 24","Delområde 4/Option 24","Delområde 5/Option 24","Delområde 6/Option 24",""]
[null,null,null,"Delområde 1/Option 25","Delområde 2/Option 25","Delområde 3/Option 25","Delområde 4/Option 25","Delområde 5/Option 25","Delområde 6/Option 25",""]
[]
[null,null,null,null,null,null,null,null,null,"Region",null,"TblFritext","TblTjaRel"]
[null,null,null,"TblGrundTilldeln",null,"Tbl krav",null,"TblEnhet",null,"Multiregionalt",null,"Precisera krav i fritext ","Serviceavtal"]
[null,null,null,"Välj grund för tilldelning…..",null,"Välj krav",null,"Styck",null,"Blekinge län",null,null,"Installation"]
[null,null,null,"Alt. 1. Lägsta pris (endast ska-krav och pris)",null,"Certifikat eller likvärdigt",null,"Timmar",null,"Dalarnas län",null,null,"Inbärning till anvisad plats"]
[null,null,null,"Alt. 2. Ekonomiskt mest fördelaktiga (priset i relation till bör-krav)",null,"Pris",null,"Månader",null,"Gotlands län",null,null,"Montering i byggnadsdel"]
[null,null,null,null,null,"Leverans",null,"År",null,"Gävleborgs län",null,null,"Förberedelse för larminstallation"]
[null,null,null,"TblUtVrd",null,"Produktegenskaper",null,"Bilaga",null,"Hallands län",null,null,"Förberedelse för installation av passersystem"]
[null,null,null,"Välj utvärdering…..",null,"Funktion",null,null,null,"Jämtlands län",null,null,"Förberedelse för elinstallation"]
[null,null,null,"Alt. 1. Relativ viktning - summan av viktade poäng för pris och uppfyllda bör-krav",null,"Tjänster relaterade till varor",null,null,null,"Jönköpings län"]
[null,null,null,"Alt. 2. Mervärdesmodell - prisavdrag för uppfyllda bör-krav",null,null,null,null,null,"Kalmars län"]
[null,null,null,"Alt. 3. Annan utvärderingsmodell",null,null,null,null,null,"Kronobergs län"]
[null,null,null,null,null,null,null,null,null,"Norrbottens län"]
[null,null,null,null,null,null,null,null,null,"Skånes län"]
[null,null,null,null,null,null,null,null,null,"Stockholms län"]
[null,null,null,null,null,null,null,null,null,"Södermanlands län"]
[null,null,null,null,null,null,null,null,null,"Uppsala län"]
[null,null,null,null,null,null,null,null,null,"Värmlands län"]
[null,null,null,null,null,null,null,null,null,"Västerbottens län"]
[null,null,null,null,null,null,null,null,null,"Västernorrlands län"]
[null,null,null,null,null,null,null,null,null,"Västmanlands län"]
[null,null,null,null,null,null,null,null,null,"Västra Götalands län"]
[null,null,null,null,null,null,null,null,null,"Örebro län"]
[null,null,null,null,null,null,null,null,null,"Östergötlands lön"]
[]
[null,null,"TblLeverantörer"]
[null,null,"Juridiskt Namn","Förvaltningens avtalsnummer ","Organisations-nummer","Adress","Postnummer","Postadress","Telefon Växel","Telefon kundtjänst","Hemsida","Kontaktperson ","Telefon","E-post kontaktperson","Befattning Kontaktperson","Fax","E-post Gruppbrevlåda"]
[]
[null,null,{"$f":"\"Välj \"&C80","v":"Välj Juridiskt Namn"},{"$f":"D80","v":"Förvaltningens avtalsnummer "},"Organisations-nummer","Adress","Postnummer","Postadress","Telefon Växel","Telefon kundtjänst","Hemsida","Kontaktperson ","Telefon","E-post kontaktperson","Befattning Kontaktperson","Fax","E-post Gruppbrevlåda"]
[null,null,"Välj Juridiskt Namn 2","Förvaltningens avtalsnummer  2","Organisations-nummer 2","Adress 2","Postnummer 2","Postadress 2","Telefon Växel 2","Telefon kundtjänst 2","Hemsida 2","Kontaktperson  2","Telefon 2","E-post kontaktperson 2","Befattning Kontaktperson 2","Fax 2","E-post Gruppbrevlåda 2"]
[]
[]
[]
[]
[]
[]
[]
[]
[]
[]
[]
[]
[]
[]
[]
[null,null,null,null,"TblKrv2",30,{"$f":"F99+1","v":31},{"$f":"G99+1","v":32},33,34,35,36,37,38,39,40,41,{"$f":"Q99+1","v":42},43,{"$f":"R99+1","v":43},{"$f":"S99+1","v":44},45,46,47,48,49,50,51,52,53]
[null,null,"TblSpecTjnstr",null,{"$f":"'2 Specifikation'!B41&'2 Specifikation'!C41:E41","v":"01."},{"$f":"INDIRECT(\"J\"&F99)","v":""},{"$f":"INDIRECT(\"J\"&G99)","v":""},"","","","","","","","","","","","","",{"$f":"INDIRECT(\"J\"&U99)","v":""},"","","","","","","","",""]
[null,null,"Välj vara",null,"Delområde 1/Option 1/Krav1","Delområde 1/Option 2/Krav1","Delområde 1/Option 3/Krav1","Delområde 1/Option 4/Krav1","Delområde 1/Option 5/Krav1","Delområde 1/Option 6/Krav1","Delområde 1/Option 7/Krav1","Delområde 1/Option 8/Krav1","Delområde 1/Option 9/Krav1","Delområde 1/Option 10/Krav1","Delområde 1/Option 11/Krav1","Delområde 1/Option 12/Krav1","Delområde 1/Option 13/Krav1","Delområde 1/Option 14/Krav1","Delområde 1/Option 15/Krav1","Delområde 1/Option 16/Krav1","Delområde 1/Option 16/Krav1","Delområde 1/Option 17/Krav1","Delområde 1/Option 18/Krav1","Delområde 1/Option 19/Krav1","Delområde 1/Option 20/Krav1","Delområde 1/Option 21/Krav1","Delområde 1/Option 22/Krav1","Delområde 1/Option 23/Krav1","Delområde 1/Option 24/Krav1","Delområde 1/Option 25/Krav1"]
[null,null,{"$f":"'2 Specifikation'!B41&\" \"&'2 Specifikation'!C41:E41","v":"01. Välj vara"},null,"Delområde 1/Option 1/Krav2","Delområde 1/Option 2/Krav2","Delområde 1/Option 3/Krav2","Delområde 1/Option 4/Krav2","Delområde 1/Option 5/Krav2","Delområde 1/Option 6/Krav2","Delområde 1/Option 7/Krav2","Delområde 1/Option 8/Krav2","Delområde 1/Option 9/Krav2","Delområde 1/Option 10/Krav2","Delområde 1/Option 11/Krav2","Delområde 1/Option 12/Krav2","Delområde 1/Option 13/Krav2","Delområde 1/Option 14/Krav2","Delområde 1/Option 15/Krav2","Delområde 1/Option 16/Krav2","Delområde 1/Option 16/Krav2","Delområde 1/Option 17/Krav2","Delområde 1/Option 18/Krav2","Delområde 1/Option 19/Krav2","Delområde 1/Option 20/Krav2","Delområde 1/Option 21/Krav2","Delområde 1/Option 22/Krav2","Delområde 1/Option 23/Krav2","Delområde 1/Option 24/Krav2","Delområde 1/Option 25/Krav2"]
[null,null,{"$f":"'2 Specifikation'!B42&\" \"&'2 Specifikation'!C42:E42","v":"02. Välj vara"},null,"Delområde 1/Option 1/Krav3","Delområde 1/Option 2/Krav3","Delområde 1/Option 3/Krav3","Delområde 1/Option 4/Krav3","Delområde 1/Option 5/Krav3","Delområde 1/Option 6/Krav3","Delområde 1/Option 7/Krav3","Delområde 1/Option 8/Krav3","Delområde 1/Option 9/Krav3","Delområde 1/Option 10/Krav3","Delområde 1/Option 11/Krav3","Delområde 1/Option 12/Krav3","Delområde 1/Option 13/Krav3","Delområde 1/Option 14/Krav3","Delområde 1/Option 15/Krav3","Delområde 1/Option 16/Krav3","Delområde 1/Option 16/Krav3","Delområde 1/Option 17/Krav3","Delområde 1/Option 18/Krav3","Delområde 1/Option 19/Krav3","Delområde 1/Option 20/Krav3","Delområde 1/Option 21/Krav3","Delområde 1/Option 22/Krav3","Delområde 1/Option 23/Krav3","Delområde 1/Option 24/Krav3","Delområde 1/Option 25/Krav3"]
[null,null,{"$f":"'2 Specifikation'!B43&\" \"&'2 Specifikation'!C43:E43","v":"03. Välj vara"},null,"Delområde 1/Option 1/Krav4","Delområde 1/Option 2/Krav4","Delområde 1/Option 3/Krav4","Delområde 1/Option 4/Krav4","Delområde 1/Option 5/Krav4","Delområde 1/Option 6/Krav4","Delområde 1/Option 7/Krav4","Delområde 1/Option 8/Krav4","Delområde 1/Option 9/Krav4","Delområde 1/Option 10/Krav4","Delområde 1/Option 11/Krav4","Delområde 1/Option 12/Krav4","Delområde 1/Option 13/Krav4","Delområde 1/Option 14/Krav4","Delområde 1/Option 15/Krav4","Delområde 1/Option 16/Krav4","Delområde 1/Option 16/Krav4","Delområde 1/Option 17/Krav4","Delområde 1/Option 18/Krav4","Delområde 1/Option 19/Krav4","Delområde 1/Option 20/Krav4","Delområde 1/Option 21/Krav4","Delområde 1/Option 22/Krav4","Delområde 1/Option 23/Krav4","Delområde 1/Option 24/Krav4","Delområde 1/Option 25/Krav4"]
[null,null,{"$f":"'2 Specifikation'!B44&\" \"&'2 Specifikation'!C44:E44","v":"04. Välj vara"},null,"Delområde 1/Option 1/Krav5","Delområde 1/Option 2/Krav5","Delområde 1/Option 3/Krav5","Delområde 1/Option 4/Krav5","Delområde 1/Option 5/Krav5","Delområde 1/Option 6/Krav5","Delområde 1/Option 7/Krav5","Delområde 1/Option 8/Krav5","Delområde 1/Option 9/Krav5","Delområde 1/Option 10/Krav5","Delområde 1/Option 11/Krav5","Delområde 1/Option 12/Krav5","Delområde 1/Option 13/Krav5","Delområde 1/Option 14/Krav5","Delområde 1/Option 15/Krav5","Delområde 1/Option 16/Krav5","Delområde 1/Option 16/Krav5","Delområde 1/Option 17/Krav5","Delområde 1/Option 18/Krav5","Delområde 1/Option 19/Krav5","Delområde 1/Option 20/Krav5","Delområde 1/Option 21/Krav5","Delområde 1/Option 22/Krav5","Delområde 1/Option 23/Krav5","Delområde 1/Option 24/Krav5","Delområde 1/Option 25/Krav5"]
[null,null,{"$f":"'2 Specifikation'!B45&\" \"&'2 Specifikation'!C45:E45","v":"05. Välj vara"},null,"Delområde 1/Option 1/Krav6","Delområde 1/Option 2/Krav6","Delområde 1/Option 3/Krav6","Delområde 1/Option 4/Krav6","Delområde 1/Option 5/Krav6","Delområde 1/Option 6/Krav6","Delområde 1/Option 7/Krav6","Delområde 1/Option 8/Krav6","Delområde 1/Option 9/Krav6","Delområde 1/Option 10/Krav6","Delområde 1/Option 11/Krav6","Delområde 1/Option 12/Krav6","Delområde 1/Option 13/Krav6","Delområde 1/Option 14/Krav6","Delområde 1/Option 15/Krav6","Delområde 1/Option 16/Krav6","Delområde 1/Option 16/Krav6","Delområde 1/Option 17/Krav6","Delområde 1/Option 18/Krav6","Delområde 1/Option 19/Krav6","Delområde 1/Option 20/Krav6","Delområde 1/Option 21/Krav6","Delområde 1/Option 22/Krav6","Delområde 1/Option 23/Krav6","Delområde 1/Option 24/Krav6","Delområde 1/Option 25/Krav6"]
[null,null,{"$f":"'2 Specifikation'!B46&\" \"&'2 Specifikation'!C46:E46","v":"06. Välj vara"},null,"Delområde 1/Option 1/Krav7","Delområde 1/Option 2/Krav7","Delområde 1/Option 3/Krav7","Delområde 1/Option 4/Krav7","Delområde 1/Option 5/Krav7","Delområde 1/Option 6/Krav7","Delområde 1/Option 7/Krav7","Delområde 1/Option 8/Krav7","Delområde 1/Option 9/Krav7","Delområde 1/Option 10/Krav7","Delområde 1/Option 11/Krav7","Delområde 1/Option 12/Krav7","Delområde 1/Option 13/Krav7","Delområde 1/Option 14/Krav7","Delområde 1/Option 15/Krav7","Delområde 1/Option 16/Krav7","Delområde 1/Option 16/Krav7","Delområde 1/Option 17/Krav7","Delområde 1/Option 18/Krav7","Delområde 1/Option 19/Krav7","Delområde 1/Option 20/Krav7","Delområde 1/Option 21/Krav7","Delområde 1/Option 22/Krav7","Delområde 1/Option 23/Krav7","Delområde 1/Option 24/Krav7","Delområde 1/Option 25/Krav7"]
[null,null,{"$f":"'2 Specifikation'!B47&\" \"&'2 Specifikation'!C47:E47","v":"07. Välj vara"},null,"Delområde 1/Option 1/Krav8","Delområde 1/Option 2/Krav8","Delområde 1/Option 3/Krav8","Delområde 1/Option 4/Krav8","Delområde 1/Option 5/Krav8","Delområde 1/Option 6/Krav8","Delområde 1/Option 7/Krav8","Delområde 1/Option 8/Krav8","Delområde 1/Option 9/Krav8","Delområde 1/Option 10/Krav8","Delområde 1/Option 11/Krav8","Delområde 1/Option 12/Krav8","Delområde 1/Option 13/Krav8","Delområde 1/Option 14/Krav8","Delområde 1/Option 15/Krav8","Delområde 1/Option 16/Krav8","Delområde 1/Option 16/Krav8","Delområde 1/Option 17/Krav8","Delområde 1/Option 18/Krav8","Delområde 1/Option 19/Krav8","Delområde 1/Option 20/Krav8","Delområde 1/Option 21/Krav8","Delområde 1/Option 22/Krav8","Delområde 1/Option 23/Krav8","Delområde 1/Option 24/Krav8","Delområde 1/Option 25/Krav8"]
[null,null,{"$f":"'2 Specifikation'!B48&\" \"&'2 Specifikation'!C48:E48","v":"08. Välj vara"},null,"Delområde 1/Option 1/Krav9","Delområde 1/Option 2/Krav9","Delområde 1/Option 3/Krav9","Delområde 1/Option 4/Krav9","Delområde 1/Option 5/Krav9","Delområde 1/Option 6/Krav9","Delområde 1/Option 7/Krav9","Delområde 1/Option 8/Krav9","Delområde 1/Option 9/Krav9","Delområde 1/Option 10/Krav9","Delområde 1/Option 11/Krav9","Delområde 1/Option 12/Krav9","Delområde 1/Option 13/Krav9","Delområde 1/Option 14/Krav9","Delområde 1/Option 15/Krav9","Delområde 1/Option 16/Krav9","Delområde 1/Option 16/Krav9","Delområde 1/Option 17/Krav9","Delområde 1/Option 18/Krav9","Delområde 1/Option 19/Krav9","Delområde 1/Option 20/Krav9","Delområde 1/Option 21/Krav9","Delområde 1/Option 22/Krav9","Delområde 1/Option 23/Krav9","Delområde 1/Option 24/Krav9","Delområde 1/Option 25/Krav9"]
[null,null,{"$f":"'2 Specifikation'!B49&\" \"&'2 Specifikation'!C49:E49","v":"09. Välj vara"}]
[null,null,{"$f":"'2 Specifikation'!B50&\" \"&'2 Specifikation'!C50:E50","v":"10. Välj vara"},null,{"$f":"IFERROR(RIGHT(INDIRECT(\"C\"&E112),LEN(INDIRECT(\"C\"&E112))-6),\"\")","v":"lj vara"},"lj vara","lj vara","lj vara","lj vara","lj vara","lj vara","lj vara","lj vara","lj vara","lj vara","lj vara","lj vara","lj vara","lj vara","lj vara","lj vara","lj vara","lj vara","lj vara","lj vara"]
[null,null,{"$f":"'2 Specifikation'!B51&\" \"&'2 Specifikation'!C51:E51","v":"11. Välj vara"},null,102,{"$f":"E112+1","v":103},{"$f":"F112+1","v":104},105,106,107,108,109,110,111,112,113,114,{"$f":"Q112+1","v":115},116,{"$f":"R112+1","v":116},{"$f":"S112+1","v":117},118,119,120,121,122]
[null,null,{"$f":"'2 Specifikation'!B52&\" \"&'2 Specifikation'!C52:E52","v":"12. Välj vara"},null,"TblKrvRes1","TblKrvRes2","TblKrvRes3","TblKrvRes4","TblKrvRes5","TblKrvRes6","TblKrvRes7","TblKrvRes8","TblKrvRes9","TblKrvRes10","TblKrvRes11","TblKrvRes12","TblKrvRes13","TblKrvRes14","TblKrvRes15","TblKrvRes16","TblKrvRes16","TblKrvRes17","TblKrvRes18","TblKrvRes19","TblKrvRes20"]
[null,null,{"$f":"'2 Specifikation'!B53&\" \"&'2 Specifikation'!C53:E53","v":"13. Välj vara"},null,{"$f":"IFERROR(INDEX($E101:$AD101,MATCH(E$111,$E$100:$AD$100,0)),\"\")","v":""},"","","","","","","","","","","","",{"$f":"IFERROR(INDEX($E101:$AD101,MATCH(R$111,$E$100:$AD$100,0)),\"\")","v":""},"",{"$f":"IFERROR(INDEX($E101:$AD101,MATCH(T$111,$E$100:$AD$100,0)),\"\")","v":""},"","","","","",{"$f":"IFERROR(RIGHT(INDIRECT(\"C\"&Z112),LEN(INDIRECT(\"C\"&Z112))-6),\"\")","v":""}]
[null,null,{"$f":"'2 Specifikation'!B54&\" \"&'2 Specifikation'!C54:E54","v":"14. Välj vara"},null,{"$f":"IFERROR(INDEX($E102:$AD102,MATCH(E$111,$E$100:$AD$100,0)),\"\")","v":""},"","","","","","","","","","","","",{"$f":"IFERROR(INDEX($E102:$AD102,MATCH(R$111,$E$100:$AD$100,0)),\"\")","v":""},"",{"$f":"IFERROR(INDEX($E102:$AD102,MATCH(T$111,$E$100:$AD$100,0)),\"\")","v":""},"","","","",""]
[null,null,{"$f":"'2 Specifikation'!B55&\" \"&'2 Specifikation'!C55:E55","v":"15. Välj vara"},null,{"$f":"IFERROR(INDEX($E103:$AD103,MATCH(E$111,$E$100:$AD$100,0)),\"\")","v":""},"","","","","","","","","","","","","","",{"$f":"IFERROR(INDEX($E103:$AD103,MATCH(T$111,$E$100:$AD$100,0)),\"\")","v":""},"","","","",""]
[null,null,{"$f":"'2 Specifikation'!B56&\" \"&'2 Specifikation'!C56:E56","v":"16. Välj vara"},null,{"$f":"IFERROR(INDEX($E104:$AD104,MATCH(E$111,$E$100:$AD$100,0)),\"\")","v":""},"","","","","","","","","","","","","","",{"$f":"IFERROR(INDEX($E104:$AD104,MATCH(T$111,$E$100:$AD$100,0)),\"\")","v":""},"","","","",""]
[null,null,{"$f":"'2 Specifikation'!B57&\" \"&'2 Specifikation'!C57:E57","v":"17. Välj vara"},null,{"$f":"IFERROR(INDEX($E105:$AD105,MATCH(E$111,$E$100:$AD$100,0)),\"\")","v":""},"","","","","","","","","","","","","","",{"$f":"IFERROR(INDEX($E105:$AD105,MATCH(T$111,$E$100:$AD$100,0)),\"\")","v":""},"","","","",""]
[null,null,{"$f":"'2 Specifikation'!B58&\" \"&'2 Specifikation'!C58:E58","v":"18. Välj vara"},null,{"$f":"IFERROR(INDEX($E106:$AD106,MATCH(E$111,$E$100:$AD$100,0)),\"\")","v":""},"","","","","","","","","","","","","","",{"$f":"IFERROR(INDEX($E106:$AD106,MATCH(T$111,$E$100:$AD$100,0)),\"\")","v":""},"","","","",""]
[null,null,{"$f":"'2 Specifikation'!B59&\" \"&'2 Specifikation'!C59:E59","v":"19. Välj vara"},null,{"$f":"IFERROR(INDEX($E107:$AD107,MATCH(E$111,$E$100:$AD$100,0)),\"\")","v":""},"","","","","","","","","","","","","","",{"$f":"IFERROR(INDEX($E107:$AD107,MATCH(T$111,$E$100:$AD$100,0)),\"\")","v":""},"","","","",""]
[null,null,{"$f":"'2 Specifikation'!B60&\" \"&'2 Specifikation'!C60:E60","v":"20. Välj vara"},null,{"$f":"IFERROR(INDEX($E108:$AD108,MATCH(E$111,$E$100:$AD$100,0)),\"\")","v":""},"","","","","","","","","","","","","","",{"$f":"IFERROR(INDEX($E108:$AD108,MATCH(T$111,$E$100:$AD$100,0)),\"\")","v":""},"","","","",""]
[null,null,{"$f":"'2 Specifikation'!B61&\" \"&'2 Specifikation'!C61:E61","v":" "},null,{"$f":"IFERROR(INDEX($E109:$AD109,MATCH(E$111,$E$100:$AD$100,0)),\"\")","v":""},"","","","","","","","","","","","","","",{"$f":"IFERROR(INDEX($E109:$AD109,MATCH(T$111,$E$100:$AD$100,0)),\"\")","v":""},"","","","",""]

{"sheet":"SysAdmin","index":4,"n_rows":9,"n_cols":5,"rows_kept":9,"cut":false,"hidden":true,"merged":[]}
["LockStatus",false]
["UKey","Förvaltning21",null,2,{"$f":"INDEX(E3:E5,D2)","v":"Avroppsblanketten är nu upplåst, klicka här för att låsa avropsblanketten."}]
["pkey","Förvaltning21",null,null,"Adminläge! Klicka här för att låsa vita celler."]
["Wkey","Förvaltning21","RGB",null,"Avroppsblanketten är nu upplåst, klicka här för att låsa avropsblanketten."]
["YColor"," ","255, 255, 153",null,"Avroppsblanketten är nu låst, klicka här för att låsa upp avropsblanketten."]
[null,null,"204, 255, 255"]
[null,null,"150, 150, 150",null,"Grund för tilldelning av kontrakt & Utvärderingsmodell"]
[null,null,"204, 255, 204",null,{"$f":"VALUE(IF(ISNUMBER(SEARCH(\"2\",DpDwnTDV))=TRUE,\"2\",\"1\"))","v":1}]
[null,null,"250, 191, 143",null,{"$f":"\"Ut\"&IF(ISNUMBER(SEARCH(\"1\",DpDwnUtvddrop))=TRUE,\"1\",IF(ISNUMBER(SEARCH(\"2\",DpDwnUtvddrop))=TRUE,\"2\",IF(ISNUMBER(SEARCH(\"3\",DpDwnUtvddrop))=TRUE,\"3\")))","v":"UtFALSE"}]